fUSD/lending_fUSD_20250610
["ID","MTS","AMOUNT","RATE_DAILY","PERIOD"]
[365274435,1749572990984,-480.0,0.00016438,2]
[365274436,1749572991005,-480.0,0.00016438,2]
[365274437,1749572991027,-490.0,0.00016438,2]
[365274438,1749572991050,-490.0,0.00016438,2]
[365274439,1749572991072,-490.0,0.00016438,2]
[365274440,1749572991093,-480.0,0.00016438,2]
[365274441,1749572991115,-480.0,0.00016438,2]
[365274442,1749572991138,-490.0,0.00016438,2]
[365274443,1749572991159,-360.0,0.00016438,2]
[365274444,1749572991181,-480.0,0.00016438,2]
[365274445,1749572991202,-480.0,0.00016438,2]
[365274446,1749572991224,-480.0,0.00016438,2]
[365274447,1749572991248,-1317.98,0.00016438,2]
[365274448,1749572991272,-490.0,0.00016438,2]
[365274449,1749572991293,-480.0,0.00016438,2]
[365274450,1749572991317,-480.0,0.00016438,2]
[365274451,1749572991340,-490.0,0.00016438,2]
[365274452,1749572991364,-490.0,0.00016438,2]
[365274453,1749572991387,-443.03853957,0.00016438,2]
[365274454,1749572994600,-36.96146043,0.00016438,2]
[365274455,1749572994621,-480.0,0.00016438,2]
[365274456,1749572994642,-490.0,0.00016438,2]
[365274457,1749572994663,-490.0,0.00016438,2]
[365274458,1749572994684,-480.0,0.00016438,2]
[365274459,1749572994705,-480.0,0.00016438,2]
[365274460,1749572994725,-480.0,0.00016438,2]
[365274461,1749572994746,-480.0,0.00016438,2]
[365274462,1749572994767,-490.0,0.00016438,2]
[365274463,1749572994788,-480.0,0.00016438,2]
[365274464,1749572994808,-480.0,0.00016438,2]
[365274465,1749572994828,-490.0,0.00016438,2]
[365274466,1749572994849,-490.0,0.00016438,2]
[365274467,1749572994869,-480.0,0.00016438,2]
[365274468,1749572994890,-430.88346629,0.00016438,2]
[365274469,1749572994911,-490.0,0.00016438,2]
[365274470,1749572994931,-463.47598666,0.00016438,2]
[365274471,1749572994953,-480.0,0.00016438,2]
[365274472,1749572994975,-1610.3,0.00016438,2]
[365274473,1749572994997,-198.37908662,0.00016438,2]
[365274474,1749572995051,-291.62091338,0.00016438,2]
[365274475,1749572995073,-480.0,0.00016438,2]
[365274476,1749572995096,-490.0,0.00016438,2]
[365274477,1749572995118,-490.0,0.00016438,2]
[365274478,1749572995142,-490.0,0.00016438,2]
[365274479,1749572995165,-490.0,0.00016438,2]
[365274480,1749572995189,-480.0,0.00016438,2]
[365274481,1749572995212,-480.0,0.00016438,2]
[365274482,1749572995234,-490.0,0.00016438,2]
[365274483,1749572995255,-490.0,0.00016438,2]
[365274484,1749572995280,-490.0,0.00016438,2]
[365274485,1749572995305,-490.0,0.00016438,2]
[365274486,1749572995330,-480.0,0.00016438,2]
[365274487,1749572995353,-490.0,0.00016438,2]
[365274488,1749572995376,-314.6872916,0.00016438,2]
[365274489,1749572995398,-480.0,0.00016438,2]
[365274490,1749572995420,-490.0,0.00016438,2]
[365274491,1749572995442,-420.0,0.00016438,2]
[365274492,1749572995465,-490.0,0.00016438,2]
[365274493,1749572995488,-490.0,0.00016438,2]
[365274494,1749572995508,-480.0,0.00016438,2]
[365274495,1749572995529,-213.69179502,0.00016438,2]
[365274496,1749572995734,-266.30820498,0.00016438,2]
[365274497,1749572995755,-490.0,0.00016438,2]
[365274498,1749572995777,-490.0,0.00016438,2]
[365274499,1749572995797,-480.0,0.00016438,2]
[365274500,1749572995818,-480.0,0.00016438,2]
[365274501,1749572995839,-480.0,0.00016438,2]
[365274502,1749572995860,-490.0,0.00016438,2]
[365274503,1749572995880,-490.0,0.00016438,2]
[365274504,1749572995902,-490.0,0.00016438,2]
[365274505,1749572995922,-480.0,0.00016438,2]
[365274506,1749572995943,-480.0,0.00016438,2]
[365274507,1749572995964,-490.0,0.00016438,2]
[365274508,1749572995984,-490.0,0.00016438,2]
[365274509,1749572996005,-480.0,0.00016438,2]
[365274510,1749572996026,-490.0,0.00016438,2]
[365274511,1749572996047,-480.0,0.00016438,2]
[365274512,1749572996068,-586.26,0.00016438,2]
[365274513,1749572996088,-366.62376508,0.00016438,2]
[365274514,1749572996110,-490.0,0.00016438,2]
[365274515,1749572996135,-480.0,0.00016438,2]
[365274516,1749572996157,-490.0,0.00016438,2]
[365274517,1749572996178,-40.80802994,0.00016438,2]
[365274518,1749572996229,-449.19197006,0.00016438,2]
[365274519,1749572996251,-490.0,0.00016438,2]
[365274520,1749572996280,-490.0,0.00016438,2]
[365274521,1749572996306,-490.0,0.00016438,2]
[365274522,1749572996332,-490.0,0.00016438,2]
[365274523,1749572996356,-490.0,0.00016438,2]
[365274524,1749572996377,-403.6138759,0.00016438,2]
[365274525,1749572996403,-490.0,0.00016438,2]
[365274526,1749572996426,-480.0,0.00016438,2]
[365274527,1749572996450,-590.64511527,0.00016438,2]
[365274528,1749572996472,-535.65,0.00016438,2]
[365274529,1749572996494,-490.0,0.00016438,2]
[365274530,1749572996520,-490.0,0.00016438,2]
[365274531,1749572996542,-490.0,0.00016438,2]
[365274532,1749572996563,-490.0,0.00016438,2]
[365274533,1749572996586,-490.0,0.00016438,2]
[365274534,1749572996608,-480.0,0.00016438,2]
[365274535,1749572996630,-480.0,0.00016438,2]
[365274536,1749572996651,-480.0,0.00016438,2]
[365274537,1749572996675,-490.0,0.00016438,2]
[365274538,1749572996697,-220.89903877,0.00016438,2]
[365274539,1749573000880,-259.10096123,0.00016438,2]
[365274540,1749573000905,-490.0,0.00016438,2]
[365274541,1749573000927,-480.0,0.00016438,2]
[365274542,1749573000951,-490.0,0.00016438,2]
[365274543,1749573000974,-490.0,0.00016438,2]
[365274544,1749573000998,-2369.5,0.00016438,2]
[365274545,1749573001020,-490.0,0.00016438,2]
[365274546,1749573001042,-490.0,0.00016438,2]
[365274547,1749573001064,-480.0,0.00016438,2]
[365274548,1749573001087,-490.0,0.00016438,2]
[365274549,1749573001112,-480.0,0.00016438,2]
[365274550,1749573001133,-334.49163588,0.00016438,2]
[365274551,1749573001158,-490.0,0.00016438,2]
[365274552,1749573001180,-490.0,0.00016438,2]
[365274553,1749573001202,-490.0,0.00016438,2]
[365274554,1749573001225,-305.94765668,0.00016438,2]
[365274555,1749573001248,-480.0,0.00016438,2]
[365274556,1749573001274,-400.95974621,0.00016438,2]
[365274557,1749573001524,-89.04025379,0.00016438,2]
[365274558,1749573001547,-490.0,0.00016438,2]
[365274559,1749573001570,-490.0,0.00016438,2]
[365274560,1749573001594,-490.0,0.00016438,2]
[365274561,1749573001617,-480.0,0.00016438,2]
[365274562,1749573001642,-490.0,0.00016438,2]
[365274563,1749573001677,-480.0,0.00016438,2]
[365274564,1749573001702,-490.0,0.00016438,2]
[365274565,1749573001727,-490.0,0.00016438,2]
[365274566,1749573001751,-490.0,0.00016438,2]
[365274567,1749573001775,-490.0,0.00016438,2]
[365274568,1749573001798,-490.0,0.00016438,2]
[365274569,1749573001820,-480.0,0.00016438,2]
[365274570,1749573001846,-490.0,0.00016438,2]
[365274571,1749573001870,-521.12,0.00016438,2]
[365274572,1749573001895,-420.0,0.00016438,2]
[365274573,1749573001934,-490.0,0.00016438,2]
[365274574,1749573001966,-490.0,0.00016438,2]
[365274575,1749573001993,-480.0,0.00016438,2]
[365274576,1749573002020,-420.0,0.00016438,2]
[365274577,1749573002049,-490.0,0.00016438,2]
[365274578,1749573002078,-259.83974621,0.00016438,2]
[365274579,1749573002232,-1200.0,0.00016437,2]
[365274580,1749573002260,-230.16025379,0.00016438,2]
[365274581,1749573002291,-480.0,0.00016438,2]
[365274582,1749573002318,-480.0,0.00016438,2]
[365274583,1749573002345,-490.0,0.00016438,2]
[365274584,1749573002375,-480.35,0.00016438,2]
[365274585,1749573002407,-490.0,0.00016438,2]
[365274586,1749573002435,-490.0,0.00016438,2]
[365274587,1749573002461,-345.57281352,0.00016438,2]
[365274588,1749573002490,-490.0,0.00016438,2]
[365274589,1749573002522,-480.0,0.00016438,2]
[365274590,1749573002551,-480.0,0.00016438,2]
[365274591,1749573002579,-490.0,0.00016438,2]
[365274592,1749573002603,-480.0,0.00016438,2]
[365274593,1749573002629,-490.0,0.00016438,2]
[365274594,1749573002661,-490.0,0.00016438,2]
[365274595,1749573002687,-593.76,0.00016438,2]
[365274596,1749573002711,-480.0,0.00016438,2]
[365274597,1749573002742,-490.0,0.00016438,2]
[365274598,1749573002777,-350.15693269,0.00016438,2]
[365274609,1749573031555,-139.84306731,0.00016438,2]
[365274610,1749573031565,-490.0,0.00016438,2]
[365274611,1749573031574,-490.0,0.00016438,2]
[365274612,1749573031584,-490.0,0.00016438,2]
[365274613,1749573031594,-490.0,0.00016438,2]
[365274614,1749573031603,-300.0,0.00016438,2]
[365274615,1749573031612,-490.0,0.00016438,2]
[365274616,1749573031622,-490.0,0.00016438,2]
[365274617,1749573031631,-490.0,0.00016438,2]
[365274618,1749573031641,-490.0,0.00016438,2]
[365274619,1749573031650,-490.0,0.00016438,2]
[365274620,1749573031660,-490.0,0.00016438,2]
[365274621,1749573031670,-480.0,0.00016438,2]
[365274622,1749573031683,-490.0,0.00016438,2]
[365274623,1749573031692,-480.0,0.00016438,2]
[365274624,1749573031701,-490.69,0.00016438,2]
[365274625,1749573031711,-490.0,0.00016438,2]
[365274626,1749573031720,-490.0,0.00016438,2]
[365274627,1749573031730,-480.0,0.00016438,2]
[365274628,1749573031740,-490.0,0.00016438,2]
[365274629,1749573031749,-480.0,0.00016438,2]
[365274630,1749573031759,-490.0,0.00016438,2]
[365274631,1749573031770,-490.0,0.00016438,2]
[365274632,1749573031780,-480.0,0.00016438,2]
[365274633,1749573031790,-490.0,0.00016438,2]
[365274634,1749573031800,-480.0,0.00016438,2]
[365274635,1749573031811,-490.0,0.00016438,2]
[365274636,1749573031822,-490.0,0.00016438,2]
[365274637,1749573031832,-490.0,0.00016438,2]
[365274638,1749573031843,-490.0,0.00016438,2]
[365274639,1749573031854,-480.0,0.00016438,2]
[365274640,1749573031864,-480.0,0.00016438,2]
[365274641,1749573031874,-490.0,0.00016438,2]
[365274642,1749573031883,-490.0,0.00016438,2]
[365274643,1749573031893,-480.0,0.00016438,2]
[365274644,1749573031903,-490.0,0.00016438,2]
[365274645,1749573031912,-2061.15,0.00016438,2]
[365274646,1749573031922,-480.0,0.00016438,2]
[365274647,1749573031935,-490.0,0.00016438,2]
[365274649,1749573031945,-341.36111363,0.00016438,2]
[365274651,1749573031955,-150.98734729,0.00016438,2]
[365274652,1749573031964,-480.0,0.00016438,2]
[365274653,1749573031974,-189.88226724,0.00016438,2]
[365274654,1749573031983,-490.0,0.00016438,2]
[365274655,1749573031993,-490.0,0.00016438,2]
[365274656,1749573032003,-490.0,0.00016438,2]
[365274657,1749573032013,-490.0,0.00016438,2]
[365274658,1749573032023,-480.0,0.00016438,2]
[365274659,1749573032033,-480.0,0.00016438,2]
[365274660,1749573032044,-700.0,0.00016438,2]
[365274661,1749573032055,-843.409682,0.00016467,2]
[365274662,1749573032065,-231.63062961,0.00016478,2]
[365274663,1749573032303,-68.36937039,0.00016478,2]
[365274664,1749573032313,-213.38987478,0.00016502,2]
[365274665,1749573032323,-251.53901598,0.00016502,2]
[365274666,1749573032333,-533.82504609,0.00016502,2]
[365274667,1749573032342,-468.28183029,0.00016502,2]
[365274668,1749573032353,-151.0,0.00016546,2]
[365274669,1749573032363,-1000.0,0.00016546,2]
[365274670,1749573032372,-1500.0,0.00016546,2]
[365274671,1749573032383,-1500.0,0.00016546,2]
[365274672,1749573032395,-1500.0,0.00016546,2]
[365274673,1749573032407,-1957.856,0.00016546,2]
[365274674,1749573032416,-1500.0,0.00016546,2]
[365274675,1749573032428,-1500.0,0.00016546,2]
[365274676,1749573032437,-151.42570454,0.00016546,2]
[365274677,1749573032447,-500.0,0.00016546,2]
[365274678,1749573032457,-500.0,0.00016546,2]
[365274679,1749573032467,-500.0,0.00016546,2]
[365274680,1749573032476,-500.0,0.00016546,2]
[365274681,1749573032486,-500.0,0.00016546,2]
[365274682,1749573032495,-500.0,0.00016546,2]
[365274683,1749573032504,-500.0,0.00016546,2]
[365274684,1749573032515,-500.0,0.00016546,2]
[365274685,1749573032525,-500.0,0.00016546,2]
[365274686,1749573032534,-500.0,0.00016546,2]
[365274687,1749573032543,-500.0,0.00016546,2]
[365274688,1749573032554,-500.0,0.00016546,2]
[365274689,1749573032563,-346.09412057,0.00016546,2]
[365274690,1749573032572,-500.0,0.00016546,2]
[365274691,1749573032581,-639.47730379,0.00016546,2]
[365274692,1749573032590,-151.0,0.00016546,2]
[365274693,1749573032599,-151.0,0.00016546,2]
[365274694,1749573032608,-151.0,0.00016546,2]
[365274695,1749573032618,-151.0,0.00016546,2]
[365274696,1749573032628,-207.4,0.00016546,2]
[365274697,1749573032637,-400.0,0.000166,6]
[365274698,1749573032647,-2030.296672,0.00016601,2]
[365274699,1749573032656,-460.64849167,0.00016602,2]
[365274700,1749573032666,-490.0,0.00016602,2]
[365274701,1749573032677,-490.0,0.00016602,2]
[365274702,1749573032686,-490.0,0.00016602,2]
[365274703,1749573032696,-407.56,0.00016602,2]
[365274704,1749573032706,-490.0,0.00016602,2]
[365274705,1749573032715,-490.0,0.00016602,2]
[365274706,1749573032725,-490.0,0.00016602,2]
[365274707,1749573032734,-490.0,0.00016602,2]
[365274708,1749573032743,-223.66,0.00016602,2]
[365274709,1749573032753,-490.0,0.00016602,2]
[365274710,1749573032762,-296.58,0.00016602,2]
[365274711,1749573032772,-490.0,0.00016602,2]
[365274712,1749573032781,-490.0,0.00016602,2]
[365274713,1749573032791,-480.0,0.00016602,2]
[365274714,1749573032801,-233.79,0.00016602,2]
[365274715,1749573032810,-534.19,0.00016602,2]
[365274716,1749573032819,-545.73,0.00016602,2]
[365274717,1749573032828,-490.0,0.00016602,2]
[365274718,1749573032838,-490.0,0.00016602,2]
[365274719,1749573032847,-551.83,0.00016602,2]
[365274720,1749573032857,-207.02,0.00016602,2]
[365274721,1749573032866,-236.33,0.00016602,2]
[365274722,1749573032876,-205.21,0.00016602,2]
[365274723,1749573032886,-490.0,0.00016602,2]
[365274724,1749573032895,-237.88,0.00016602,2]
[365274725,1749573032904,-362.07,0.00016602,2]
[365274726,1749573032913,-490.0,0.00016602,2]
[365274727,1749573032925,-490.0,0.00016602,2]
[365274728,1749573032935,-490.0,0.00016602,2]
[365274729,1749573032944,-490.0,0.00016602,2]
[365274730,1749573032953,-484.08,0.00016602,2]
[365274731,1749573032963,-490.0,0.00016602,2]
[365274732,1749573032972,-490.0,0.00016602,2]
[365274733,1749573032982,-402.91,0.00016602,2]
[365274734,1749573032991,-490.0,0.00016602,2]
[365274735,1749573033002,-490.0,0.00016602,2]
[365274736,1749573033011,-490.0,0.00016602,2]
[365274737,1749573033022,-490.0,0.00016602,2]
[365274738,1749573033032,-490.0,0.00016602,2]
[365274739,1749573033042,-490.0,0.00016602,2]
[365274740,1749573033052,-490.0,0.00016602,2]
[365274741,1749573033063,-490.0,0.00016602,2]
[365274742,1749573033073,-253.52,0.00016602,2]
[365274743,1749573033082,-470.0,0.00016602,2]
[365274744,1749573033092,-533.53,0.00016602,2]
[365274745,1749573033103,-513.99,0.00016602,2]
[365274746,1749573033113,-490.0,0.00016602,2]
[365274747,1749573033122,-475.37,0.00016602,2]
[365274748,1749573033132,-490.0,0.00016602,2]
[365274749,1749573033142,-255.74,0.00016602,2]
[365274750,1749573033151,-73.53881417,0.00016602,2]
[365274751,1749573033166,-459.75118583,0.00016602,2]
[365274752,1749573033179,-1002.154885,0.00016602,2]
[365274753,1749573033190,-470.0,0.00016602,2]
[365274754,1749573033201,-490.0,0.00016602,2]
[365274755,1749573033212,-490.0,0.00016602,2]
[365274756,1749573033223,-252.0,0.00016602,2]
[365274757,1749573033234,-577.68,0.00016602,2]
[365274758,1749573033245,-457.84150607,0.00016602,2]
[365274759,1749573033255,-520.7,0.00016602,2]
[365274760,1749573033267,-490.0,0.00016602,2]
[365274761,1749573033279,-939.36,0.00016602,2]
[365274762,1749573033292,-490.0,0.00016602,2]
[365274763,1749573033303,-579.56,0.00016602,2]
[365274764,1749573033313,-798.954134,0.00016602,2]
[365274765,1749573033324,-490.0,0.00016602,2]
[365274766,1749573033335,-782.95,0.00016602,2]
[365274767,1749573033346,-1532.35,0.00016602,2]
[365274768,1749573033357,-490.0,0.00016602,2]
[365274769,1749573033368,-230.05828909,0.00016602,2]
[365274770,1749573033386,-361.64405764,0.00016602,2]
[365274771,1749573033399,-408.29765327,0.00016602,2]
[365274772,1749573033410,-35.44389258,0.00016602,2]
[365274773,1749573033423,-451.06610742,0.00016602,2]
[365274774,1749573033432,-490.0,0.00016602,2]
[365274775,1749573033442,-490.0,0.00016602,2]
[365274776,1749573033452,-490.0,0.00016602,2]
[365274777,1749573033462,-490.0,0.00016602,2]
[365274778,1749573033473,-296.37,0.00016602,2]
[365274779,1749573033484,-490.0,0.00016602,2]
[365274780,1749573033494,-160.84,0.00016602,2]
[365274781,1749573033504,-512.59,0.00016602,2]
[365274782,1749573033514,-490.0,0.00016602,2]
[365274783,1749573033524,-476.78438928,0.00016602,2]
[365274784,1749573033534,-490.0,0.00016602,2]
[365274785,1749573033544,-490.0,0.00016602,2]
[365274786,1749573033554,-1205.89,0.00016602,2]
[365274787,1749573033564,-490.0,0.00016602,2]
[365274788,1749573033574,-288.28806476,0.00016602,2]
[365274789,1749573033584,-490.0,0.00016602,2]
[365274790,1749573033593,-490.0,0.00016602,2]
[365274791,1749573033603,-490.0,0.00016602,2]
[365274792,1749573033613,-490.0,0.00016602,2]
[365274793,1749573033622,-490.0,0.00016602,2]
[365274794,1749573033632,-490.0,0.00016602,2]
[365274795,1749573033643,-490.0,0.00016602,2]
[365274796,1749573033653,-490.0,0.00016602,2]
[365274797,1749573033663,-490.0,0.00016602,2]
[365274798,1749573033673,-202.76,0.00016602,2]
[365274799,1749573033683,-546.13,0.00016602,2]
[365274800,1749573033693,-435.41,0.00016602,2]
[365274801,1749573033703,-352.45,0.00016602,2]
[365274802,1749573033713,-490.0,0.00016602,2]
[365274803,1749573033723,-490.0,0.00016602,2]
[365274804,1749573033733,-490.0,0.00016602,2]
[365274805,1749573033743,-582.72,0.00016602,2]
[365274806,1749573033752,-490.0,0.00016602,2]
[365274807,1749573033762,-490.0,0.00016602,2]
[365274808,1749573033772,-333.77229932,0.00016602,2]
[365274809,1749573033781,-317.0,0.00016602,2]
[365274810,1749573033791,-490.0,0.00016602,2]
[365274811,1749573033802,-188.64,0.00016602,2]
[365274812,1749573033812,-490.0,0.00016602,2]
[365274813,1749573033821,-490.0,0.00016602,2]
[365274814,1749573033831,-322.41,0.00016602,2]
[365274815,1749573033843,-94.67575217,0.00016602,2]
[365274816,1749573034064,-395.32424783,0.00016602,2]
[365274817,1749573034075,-106.31562611,0.00016602,2]
[365274822,1749573038004,-292.275851,0.00016438,2]
[365274823,1749573038014,-417.02279699,0.00016438,2]
[365274824,1749573038025,-72.97720301,0.00016438,2]
[365274825,1749573038035,-490.0,0.00016438,2]
[365274826,1749573038044,-490.0,0.00016438,2]
[365274827,1749573038053,-480.0,0.00016438,2]
[365274828,1749573038062,-480.0,0.00016438,2]
[365274829,1749573038071,-490.0,0.00016438,2]
[365274830,1749573038080,-480.0,0.00016438,2]
[365274831,1749573038089,-490.0,0.00016438,2]
[365274832,1749573038098,-490.0,0.00016438,2]
[365274833,1749573038107,-480.0,0.00016438,2]
[365274834,1749573038117,-406.16437389,0.00016602,2]
[365274835,1749573038127,-417.88,0.00016602,2]
[365274836,1749573038136,-1317.98,0.00016602,2]
[365274837,1749573038145,-576.32,0.00016602,2]
[365274838,1749573038154,-490.0,0.00016602,2]
[365274839,1749573038164,-316.47,0.00016602,2]
[365274840,1749573038173,-490.0,0.00016602,2]
[365274841,1749573038183,-490.0,0.00016602,2]
[365274842,1749573038193,-490.0,0.00016602,2]
[365274843,1749573038202,-509.64,0.00016602,2]
[365274844,1749573038211,-537.64,0.00016602,2]
[365274845,1749573038221,-490.0,0.00016602,2]
[365274846,1749573038230,-1610.3,0.00016602,2]
[365274847,1749573038240,-490.0,0.00016602,2]
[365274848,1749573038250,-490.0,0.00016602,2]
[365274849,1749573038259,-490.0,0.00016602,2]
[365274850,1749573038269,-490.0,0.00016602,2]
[365274851,1749573038278,-490.0,0.00016602,2]
[365274852,1749573038287,-490.0,0.00016602,2]
[365274853,1749573038299,-512.86,0.00016602,2]
[365274854,1749573038309,-541.24,0.00016602,2]
[365274855,1749573038319,-490.0,0.00016602,2]
[365274856,1749573038330,-570.43,0.00016602,2]
[365274857,1749573038340,-490.0,0.00016602,2]
[365274858,1749573038349,-337.7377421,0.00016602,2]
[365274859,1749573038362,-152.2622579,0.00016602,2]
[365274860,1749573038373,-490.0,0.00016602,2]
[365274861,1749573038382,-490.0,0.00016602,2]
[365274862,1749573038392,-490.0,0.00016602,2]
[365274863,1749573038401,-490.0,0.00016602,2]
[365274864,1749573038410,-490.0,0.00016602,2]
[365274865,1749573038420,-439.64,0.00016602,2]
[365274866,1749573038429,-490.0,0.00016602,2]
[365274868,1749573038440,-490.0,0.00016602,2]
[365274870,1749573038449,-490.0,0.00016602,2]
[365274872,1749573038460,-490.0,0.00016602,2]
[365274874,1749573038469,-490.0,0.00016602,2]
[365274876,1749573038479,-79.58803914,0.00016602,2]
[365274878,1749573038491,-410.41196086,0.00016602,2]
[365274880,1749573038500,-44.96112608,0.00016602,2]
[365274886,1749573038549,-490.0,0.00016438,2]
[365274888,1749573038558,-445.03887392,0.00016602,2]
[365274890,1749573038568,-490.0,0.00016602,2]
[365274892,1749573038579,-490.0,0.00016602,2]
[365274894,1749573038589,-490.0,0.00016602,2]
[365274896,1749573038598,-490.0,0.00016602,2]
[365274898,1749573038607,-490.0,0.00016602,2]
[365274900,1749573038620,-490.0,0.00016602,2]
[365274902,1749573038629,-218.14336362,0.00016602,2]
[365274906,1749573038653,-271.85663638,0.00016602,2]
[365274908,1749573038663,-490.0,0.00016602,2]
[365274910,1749573038672,-324.71,0.00016602,2]
[365274912,1749573038682,-490.0,0.00016602,2]
[365274914,1749573038693,-490.0,0.00016602,2]
[365274916,1749573038703,-490.0,0.00016602,2]
[365274918,1749573038712,-490.0,0.00016602,2]
[365274920,1749573038721,-2369.5,0.00016602,2]
[365274922,1749573038731,-635.05431479,0.00016602,2]
[365274924,1749573038740,-490.0,0.00016602,2]
[365274926,1749573038751,-490.0,0.00016602,2]
[365274928,1749573038761,-177.44,0.00016602,2]
[365274930,1749573038770,-490.0,0.00016602,2]
[365274932,1749573038779,-490.0,0.00016602,2]
[365274934,1749573038788,-490.0,0.00016602,2]
[365274936,1749573038798,-490.0,0.00016602,2]
[365274938,1749573038808,-490.0,0.00016602,2]
[365274940,1749573038818,-490.0,0.00016602,2]
[365274942,1749573038827,-349.39,0.00016602,2]
[365274944,1749573038837,-490.0,0.00016602,2]
[365274946,1749573038846,-490.0,0.00016602,2]
[365274948,1749573038856,-591.51,0.00016602,2]
[365274950,1749573038865,-490.0,0.00016602,2]
[365274952,1749573038875,-490.0,0.00016602,2]
[365274954,1749573038884,-490.0,0.00016602,2]
[365274956,1749573038893,-490.0,0.00016602,2]
[365274958,1749573038902,-490.0,0.00016602,2]
[365274960,1749573038912,-614.81,0.00016602,2]
[365274961,1749573038922,-490.0,0.00016602,2]
[365274962,1749573038932,-490.0,0.00016602,2]
[365274963,1749573038942,-490.0,0.00016602,2]
[365274964,1749573038952,-490.0,0.00016602,2]
[365274965,1749573038962,-565.1,0.00016602,2]
[365274966,1749573038973,-507.11,0.00016602,2]
[365274967,1749573038983,-490.0,0.00016602,2]
[365274968,1749573038993,-490.0,0.00016602,2]
[365274969,1749573039003,-490.0,0.00016602,2]
[365274970,1749573039012,-490.0,0.00016602,2]
[365274971,1749573039023,-490.0,0.00016602,2]
[365274972,1749573039032,-490.0,0.00016602,2]
[365274973,1749573039042,-490.0,0.00016602,2]
[365274974,1749573039051,-300.97,0.00016602,2]
[365274975,1749573039060,-490.0,0.00016602,2]
[365274976,1749573039070,-606.24,0.00016602,2]
[365274977,1749573039080,-490.0,0.00016602,2]
[365274979,1749573039089,-490.0,0.00016602,2]
[365274981,1749573039099,-450.0,0.00016602,2]
[365274983,1749573039108,-577.52,0.00016602,2]
[365274985,1749573039118,-490.0,0.00016602,2]
[365274987,1749573039127,-490.0,0.00016602,2]
[365274989,1749573039137,-490.0,0.00016602,2]
[365274992,1749573039148,-490.0,0.00016602,2]
[365274994,1749573039157,-490.0,0.00016602,2]
[365274996,1749573039170,-490.0,0.00016602,2]
[365274998,1749573039179,-490.0,0.00016602,2]
[365275000,1749573039189,-590.65,0.00016602,2]
[365275002,1749573039199,-521.08,0.00016602,2]
[365275004,1749573039208,-490.0,0.00016602,2]
[365275006,1749573039218,-150.28,0.00016602,2]
[365275008,1749573039227,-490.0,0.00016602,2]
[365275010,1749573039237,-1826.77904883,0.00016602,2]
[365275075,1749573039768,-470.493024,0.00016438,2]
[365275078,1749573039780,-19.506976,0.00016438,2]
[365275080,1749573039789,-490.0,0.00016438,2]
[365275082,1749573039799,-480.0,0.00016438,2]
[365275084,1749573039808,-480.0,0.00016438,2]
[365275086,1749573039818,-480.0,0.00016438,2]
[365275088,1749573039827,-420.0,0.00016438,2]